bitfinex-derivatives/quotes_SOLF0:USTF0_20260312
["timestamp","ask_amount","ask_price","bid_price","bid_amount"]
[1773313968886,2.47851769,86.8,86.762,10.17144646]
[1773313969086,2.47851769,86.78,86.74,10.17379098]
[1773313969381,2.47851769,86.77,86.727,10.17379098]
[1773313969584,2.47851769,86.75,86.715,10.17379098]
[1773313969787,2.47851769,86.75,86.696,10.17379098]
[1773313970590,10.373,86.749,86.7,10.19915865]
[1773313970982,2.47851769,86.75,86.7,10.19915865]
[1773313971188,2.47851769,86.74,86.7,10.19915865]
[1773313971390,2.47851769,86.75,86.7,10.19915865]
[1773313972890,10.374,86.739,86.7,10.19915865]
[1773313973186,2.47851769,86.76,86.702,10.24493296]
[1773313973390,10.372,86.756,86.702,10.24493296]
[1773313974091,2.47851769,86.77,86.717,10.24493296]
[1773313974387,2.47851769,86.76,86.717,10.24493296]
[1773313975894,10.372,86.759,86.717,10.24493296]
[1773313977194,10.372,86.752,86.717,10.24493296]
[1773313977398,2.47851769,86.75,86.703,10.2474894]
[1773313978491,2.47851769,86.74,86.691,20.57670564]
[1773313978691,2.47851769,86.73,86.691,10.19670564]
[1773313979192,2.47851769,86.74,86.691,10.19670564]
[1773313981091,2.47851769,86.74,86.693,10.21781673]
[1773313981390,2.47851769,86.73,86.693,10.21781673]
[1773313981594,43.56,86.763,86.655,43.56]
[1773313981595,2.47851769,86.72,86.661,10.21781673]
[1773313982585,2.47851769,86.71,86.662,10.24742345]
[1773313982796,10.377,86.712,86.662,10.24742345]
[1773313982997,2.47851769,86.72,86.662,10.24742345]
[1773313984098,2.47851769,86.72,86.637,43.56]
[1773313984099,2.47851769,86.74,86.681,10.24742345]
[1773313985396,2.47851769,86.75,86.695,10.36120974]
[1773313985698,2.47851769,86.73,86.695,10.36120974]
[1773313985893,10.375,86.727,86.695,10.36120974]
[1773313986398,10.376,86.72,86.695,10.36120974]
[1773313986699,10.376,86.72,86.674,10.39425388]
[1773313987400,10.377,86.712,86.674,10.39425388]
[1773313987800,12.85451769,86.72,86.674,10.39425388]
[1773313988101,10.376,86.72,86.674,10.39425388]
[1773313989003,10.376,86.72,86.676,10.38516018]
[1773313991304,10.375,86.727,86.68,10.32223886]
[1773313991605,2.47851769,86.73,86.68,10.32223886]
[1773313991799,10.375,86.729,86.684,10.32223886]
[1773313992004,2.47851769,86.74,86.684,10.32223886]
[1773313992607,10.374,86.736,86.697,10.379]
[1773313992810,2.47851769,86.73,86.649,10.32212842]
[1773313993002,2.47851769,86.73,86.671,10.32212842]
[1773313994015,10.375,86.727,86.681,10.32212842]
[1773313994914,10.375,86.727,86.684,10.28537932]
[1773313995607,2.47851769,86.72,86.672,10.28537932]
[1773313995808,2.47851769,86.71,86.672,10.28537932]
[1773313997516,10.378,86.702,86.672,10.28537932]
[1773313997718,2.47851769,86.71,86.672,10.28537932]
[1773313997918,2.47851769,86.72,86.672,10.28537932]
[1773313998925,10.376,86.719,86.678,10.24333895]
[1773313999825,10.376,86.719,86.679,10.381]
[1773314000023,10.376,86.719,86.68,10.24333895]
[1773314000326,10.375,86.728,86.68,12.72185664]
[1773314001921,10.375,86.728,86.688,20.64460834]
[1773314002118,10.375,86.728,86.689,10.26460834]
[1773314002323,10.374,86.735,86.689,10.26460834]
[1773314002527,2.47851769,86.74,86.69,10.38]
[1773314002828,2.47851769,86.74,86.691,10.2699342]
[1773314003825,10.375,86.729,86.692,10.379]
[1773314004025,10.375,86.729,86.691,10.2699342]
[1773314005630,2.47851769,86.73,86.671,10.24111937]
[1773314005929,43.56,86.756,86.681,10.24111937]
[1773314006126,2.47851769,86.74,86.681,10.24111937]
[1773314006321,10.376,86.725,86.684,10.38]
[1773314006526,2.47851769,86.73,86.685,10.24093275]
[1773314008025,10.376,86.719,86.685,10.24093275]
[1773314011825,10.376,86.719,86.677,10.381]
[1773314012530,10.376,86.719,86.677,20.61252167]
[1773314012731,10.377,86.713,86.677,10.23152167]
[1773314012931,2.47851769,86.71,86.677,10.23152167]
[1773314013427,10.379,86.699,86.677,10.23152167]
[1773314013623,2.47851769,86.71,86.677,10.23152167]
[1773314014933,10.378,86.706,86.677,10.23152167]
[1773314015335,2.47851769,86.71,86.663,10.23213111]
[1773314015536,2.47851769,86.7,86.662,10.383]
[1773314016235,2.47851769,86.7,86.662,20.61513111]
[1773314016630,12.85751769,86.7,86.662,10.23213111]
[1773314017231,10.379,86.694,86.662,10.23213111]
[1773314020735,10.379,86.694,86.649,10.27098427]
[1773314021131,2.47851769,86.7,86.649,10.27098427]
[1773314022838,10.38,86.692,86.649,10.27098427]
[1773314023232,2.47851769,86.7,86.649,10.27098427]
[1773314024633,10.379,86.694,86.656,10.25391202]
[1773314026740,10.38,86.688,86.656,10.25391202]
[1773314028436,10.381,86.682,86.656,10.25391202]
[1773314031541,2.4847981,86.7,86.656,10.25391202]
[1773314032839,10.38,86.692,86.656,10.25391202]
[1773314044351,2.4847981,86.7,86.657,10.384]
[1773314044553,2.4847981,86.7,86.658,10.23894276]
[1773314045654,10.38,86.691,86.658,10.23894276]
[1773314046555,10.381,86.683,86.658,10.23894276]
[1773314046755,2.4847981,86.7,86.658,10.23894276]
[1773314047452,10.381,86.682,86.649,10.23916494]
[1773314050157,2.4847981,86.73,86.67,2.4847981]
[1773314050349,2.4847981,86.74,86.671,10.23169676]
[1773314051160,2.4847981,86.73,86.671,10.23169676]
[1773314051459,2.4847981,86.73,86.67,2.4847981]
[1773314051460,10.376,86.72,86.677,10.2212231]
[1773314053058,10.377,86.713,86.677,10.2212231]
[1773314053261,2.4847981,86.71,86.665,10.16322217]
[1773314053461,10.379,86.696,86.665,10.16322217]
[1773314053652,10.379,86.696,86.641,10.16322217]
[1773314054857,10.379,86.696,86.65,10.14616112]
[1773314055858,10.379,86.696,86.651,10.384]
[1773314056058,10.379,86.696,86.652,10.14616112]
[1773314056259,10.38,86.689,86.652,10.14616112]
[1773314056763,2.4847981,86.7,86.652,10.14616112]
[1773314057251,10.378,86.705,86.652,10.14616112]
[1773314057458,10.378,86.705,86.655,10.384]
[1773314057656,10.378,86.705,86.656,10.16301073]
[1773314058464,10.378,86.705,86.659,10.16294664]
[1773314061957,10.379,86.699,86.659,10.16294664]
[1773314062163,20.748,86.741,86.659,10.16294664]
[1773314062164,2.4847981,86.7,86.659,10.16294664]
[1773314063062,10.38,86.692,86.659,10.16294664]
[1773314063661,10.379,86.699,86.659,10.16294664]
[1773314063963,2.4847981,86.7,86.659,10.16294664]
[1773314064956,10.38,86.686,86.644,10.15444241]
[1773314065561,10.38,86.686,86.645,10.385]
[1773314065757,10.38,86.686,86.646,10.15444241]
[1773314066260,10.379,86.695,86.651,10.15444241]
[1773314066870,10.379,86.695,86.654,10.18814571]
[1773314075075,10.379,86.695,86.655,10.384]
[1773314075271,10.379,86.695,86.656,10.23162527]
[1773314076878,10.379,86.695,86.66,10.22853987]
[1773314078482,2.4847981,86.72,86.663,10.18820034]
[1773314079972,2.4847981,86.72,86.66,2.4847981]
[1773314079973,2.4847981,86.71,86.667,10.18820034]
[1773314080883,10.379,86.697,86.667,10.18820034]
[1773314082083,10.378,86.704,86.667,10.18820034]
[1773314083579,10.379,86.699,86.667,10.18820034]
[1773314084979,10.38,86.692,86.667,10.18820034]
[1773314085175,10.38,86.692,86.656,10.25863004]
[1773314087087,10.379,86.699,86.658,10.31074454]
[1773314089094,10.379,86.699,86.661,10.35301503]
[1773314091594,2.48393389,86.7,86.661,10.35301503]
[1773314092995,10.38,86.692,86.661,10.35301503]
[1773314093899,10.379,86.7,86.661,10.35301503]
[1773314094999,2.48393389,86.71,86.661,10.35301503]
[1773314095994,10.378,86.708,86.661,10.35301503]
[1773314097094,10.377,86.717,86.664,10.43094468]
[1773314098499,2.48393389,86.71,86.664,10.43094468]
[1773314098995,2.48393389,86.71,86.665,10.383]
[1773314099195,2.48393389,86.71,86.666,10.4386465]
[1773314099896,2.48393389,86.71,86.671,10.4386465]
[1773314100098,10.377,86.717,86.671,10.4386465]
[1773314101097,10.377,86.717,86.672,10.382]
[1773314101298,10.377,86.717,86.673,10.4754359]
[1773314103202,10.377,86.717,86.674,10.46903637]
[1773314103601,8.65767732,86.725,86.674,10.46903637]
[1773314103802,2.48393389,86.73,86.674,10.46903637]
[1773314104999,2.48393389,86.73,86.689,10.38]
[1773314105201,2.48393389,86.73,86.689,20.90445519]
[1773314105900,2.48393389,86.73,86.692,10.52445519]
[1773314106701,2.48393389,86.74,86.695,10.50416766]
[1773314106908,43.56,86.739,86.695,10.50416766]
[1773314107806,2.48393389,86.73,86.695,10.50416766]
[1773314111910,10.375,86.729,86.695,10.50416766]
[1773314112308,10.375,86.729,86.685,10.52368438]
[1773314112607,2.48393389,86.72,86.685,10.52368438]
[1773314113108,12.85993389,86.72,86.676,10.381]
[1773314113410,12.85993389,86.72,86.582,161.67]
[1773314113411,2.48393389,86.7,86.666,10.52436777]
[1773314115112,43.56,86.709,86.669,10.55462649]
[1773314115507,2.48393389,86.71,86.675,20.93562649]
[1773314115908,2.48393389,86.71,86.676,10.55462649]
[1773314116805,2.48393389,86.7,86.676,10.55462649]
[1773314117211,2.48393389,86.7,86.663,10.5564316]
[1773314118015,2.48393389,86.69,86.657,10.384]
[1773314118216,10.379,86.699,86.659,10.383]
[1773314118417,2.48393389,86.71,86.66,10.5564316]
[1773314118610,43.56,86.715,86.66,13.04036549]
[1773314120018,43.56,86.715,86.68,20.97724202]
[1773314121319,43.56,86.715,86.681,10.59672121]
[1773314123417,43.56,86.715,86.667,10.60052757]
[1773314123418,10.377,86.713,86.667,10.60052757]
[1773314123625,43.56,86.715,86.667,10.60052757]
[1773314123626,2.48393389,86.71,86.667,10.60052757]
[1773314124918,2.48393389,86.71,86.65,2.48393389]
[1773314124919,10.378,86.709,86.669,10.5517667]
[1773314126722,10.378,86.709,86.635,20.773]
[1773314126723,2.48393389,86.69,86.656,10.54300749]
[1773314126915,2.48393389,86.71,86.656,10.54300749]
[1773314127722,10.378,86.709,86.67,10.382]
[1773314128425,2.48393389,86.71,86.67,10.382]
[1773314129720,12.86093389,86.71,86.669,10.54300749]
[1773314129922,2.48393389,86.7,86.662,10.383]
[1773314135426,10.379,86.698,86.657,10.55624696]
[1773314136228,2.48393389,86.69,86.657,10.55624696]
[1773314137535,10.38,86.692,86.657,10.55624696]
[1773314140231,2.48393389,86.7,86.665,10.55725849]
[1773314140436,2.48393389,86.71,86.665,10.55725849]
[1773314140836,12.86093389,86.71,86.666,10.55811302]
[1773314141037,2.48393389,86.7,86.666,10.55811302]
[1773314141232,12.86093389,86.71,86.666,10.55811302]
[1773314142127,12.86093389,86.71,86.669,10.55811302]
[1773314142840,12.86093389,86.71,86.671,10.60721005]
[1773314147546,43.56,86.723,86.673,10.49910277]
[1773314148045,43.56,86.723,86.656,21.54150221]
[1773314148046,43.56,86.723,86.692,10.49910277]
[1773314148348,53.934,86.734,86.692,10.49910277]
[1773314149448,10.374,86.734,86.692,10.49910277]
[1773314149644,43.56,86.733,86.692,10.49910277]
[1773314149849,43.56,86.733,86.695,10.50828789]
[1773314151653,2.48278244,86.73,86.695,10.50828789]
[1773314154253,2.48278244,86.74,86.701,10.48666952]
[1773314154553,43.56,86.745,86.701,10.48666952]
[1773314155860,43.56,86.745,86.704,10.378]
[1773314156158,2.48278244,86.74,86.705,10.49416668]
[1773314156662,43.56,86.74,86.705,10.49416668]
[1773314159260,43.56,86.74,86.669,20.765]
[1773314159261,2.48278244,86.73,86.692,10.48449385]
[1773314160259,2.48278244,86.73,86.693,10.379]
[1773314160454,2.48278244,86.73,86.694,10.4844283]
[1773314160862,2.48278244,86.73,86.695,10.379]
[1773314161053,2.48278244,86.73,86.696,10.4844283]
[1773314162363,56.41678244,86.74,86.7,10.4844283]
[1773314164063,56.41678244,86.74,86.701,10.378]
[1773314164363,56.41678244,86.74,86.702,10.48423385]
[1773314167169,10.375,86.734,86.702,10.48423385]
[1773314167466,46.04278244,86.74,86.702,10.48423385]
[1773314168360,197.9627438,86.753,86.704,10.48410678]
[1773314168361,2.48278244,86.75,86.704,10.48410678]
[1773314168568,43.56,86.749,86.704,10.48410678]
[1773314168761,43.56,86.748,86.704,10.48410678]
[1773314169863,43.56,86.748,86.718,10.48714698]
[1773314170967,43.56,86.748,86.72,10.49275556]
[1773314173063,2.48278244,86.77,86.723,10.49341193]
[1773314173265,43.56,86.769,86.723,10.49341193]
[1773314173659,2.48278244,86.76,86.723,10.49341193]
[1773314174966,2.48278244,86.76,86.725,10.376]
[1773314175661,2.48278244,86.74,86.712,10.49118512]
[1773314175867,2.48278244,86.73,86.675,10.49118512]
[1773314176368,2.48278244,86.73,86.697,10.379]
[1773314176567,2.48278244,86.73,86.697,20.88631395]
[1773314177869,12.85678244,86.74,86.697,20.88631395]
[1773314178369,12.85678244,86.74,86.7,10.57908854]
[1773314179070,2.48278244,86.74,86.7,10.57908854]
[1773314180870,10.374,86.739,86.7,10.57908854]
[1773314181073,2.48278244,86.73,86.689,10.61059647]
[1773314181774,2.48278244,86.74,86.689,10.61059647]
[1773314183071,10.375,86.734,86.697,10.56848661]
[1773314183573,2.48278244,86.74,86.699,10.56848661]
[1773314184876,2.48278244,86.74,86.7,10.378]
[1773314185077,2.48278244,86.74,86.701,10.49908401]
[1773314187377,2.48278244,86.74,86.703,10.55471416]
[1773314187579,10.374,86.737,86.703,10.55471416]
[1773314190173,43.56,86.741,86.706,10.4892334]
[1773314191380,43.56,86.741,86.709,10.47015344]
[1773314192882,43.56,86.741,86.711,20.84786147]
[1773314193279,43.56,86.741,86.711,10.47086147]
[1773314193684,2.48278244,86.74,86.711,10.47086147]
[1773314197084,10.374,86.736,86.7,10.46840125]
[1773314197391,43.56,86.741,86.689,10.46840125]
[1773314197392,2.48278244,86.73,86.689,10.46840125]
[1773314198088,2.48278244,86.73,86.691,10.46840125]
[1773314200891,10.375,86.729,86.691,10.46840125]
[1773314204096,10.375,86.729,86.687,10.38]
[1773314204097,10.374,86.737,86.694,10.40697729]
[1773314204995,10.374,86.737,86.696,10.40693518]
[1773314205392,2.48278244,86.73,86.696,10.40693518]
[1773314207700,10.375,86.728,86.696,10.40693518]
[1773314208698,10.375,86.728,86.688,20.77124757]
[1773314208899,10.375,86.728,86.689,10.39124757]
[1773314212502,10.375,86.728,86.69,10.38]
[1773314212702,10.375,86.728,86.691,10.38092533]
[1773314215704,2.48245282,86.73,86.691,10.38092533]
[1773314216906,10.375,86.728,86.691,10.38092533]
[1773314219306,10.375,86.728,86.692,10.38981094]
[1773314222312,43.56,86.734,86.692,10.38981094]
[1773314222914,10.374,86.739,86.701,10.38451428]
[1773314224316,43.58,86.741,86.703,10.38451428]
[1773314224517,43.58,86.754,86.703,10.38451428]
[1773314225217,43.58,86.754,86.718,10.38016643]
[1773314225518,20.736,86.789,86.718,10.38016643]
[1773314225519,43.58,86.764,86.718,10.38016643]
[1773314227018,43.58,86.764,86.727,10.38433095]
[1773314228416,43.56,86.766,86.727,10.38433095]
[1773314229514,43.56,86.765,86.727,10.38433095]
[1773314233812,43.56,86.766,86.729,10.39409199]
[1773314234015,10.371,86.765,86.729,10.39409199]
[1773314235318,2.48245282,86.76,86.729,10.39409199]
[1773314236923,10.371,86.765,86.729,10.39409199]
[1773314237226,2.48245282,86.76,86.729,10.39409199]
[1773314238126,10.371,86.765,86.729,10.39409199]
[1773314238521,53.931,86.765,86.729,10.39409199]
[1773314239219,2.48245282,86.77,86.729,10.39409199]
[1773314239414,53.93,86.774,86.729,10.39409199]
[1773314240121,43.56,86.774,86.737,10.43395032]
[1773314240625,43.56,86.778,86.741,10.41990999]
[1773314242025,43.56,86.778,86.746,10.41990999]
[1773314242329,20.728,86.825,86.746,10.41990999]
[1773314242330,2.48245282,86.79,86.746,10.41990999]
[1773314242531,43.56,86.789,86.749,10.40560649]
[1773314243626,2.48245282,86.77,86.721,10.40560649]
[1773314244027,2.48245282,86.77,86.734,10.40560649]
[1773314244230,2.48245282,86.78,86.734,10.40560649]
[1773314244424,2.48245282,86.77,86.734,10.40560649]
[1773314247035,10.37,86.776,86.734,10.40560649]
[1773314247531,10.37,86.776,86.737,10.41317241]
[1773314248034,43.56,86.775,86.74,10.41317241]
[1773314257743,43.56,86.775,86.742,10.373]
[1773314259547,43.56,86.775,86.74,10.41317241]
[1773314262944,43.56,86.775,86.74,20.78717241]
[1773314266742,43.56,86.775,86.741,10.36211885]
[1773314269940,43.56,86.775,86.74,10.374]
[1773314269941,46.04245282,86.8,86.744,10.34920133]
[1773314270146,2.48245282,86.81,86.744,10.34920133]
[1773314270350,43.56,86.809,86.744,10.34920133]
[1773314270650,11.48251303,86.819,86.771,10.354985]
[1773314270850,43.56,86.818,86.771,10.354985]
[1773314271645,43.56,86.818,86.775,10.354985]
[1773314271849,11.59249273,86.832,86.781,10.354985]
[1773314272551,43.56,86.833,86.781,10.354985]
[1773314273051,43.56,86.833,86.789,10.33757894]
[1773314274151,43.56,86.833,86.792,10.33757894]
[1773314275253,43.56,86.846,86.792,10.33757894]
[1773314275547,43.56,86.845,86.792,10.33757894]
[1773314276754,2.47655402,86.84,86.792,10.33757894]
[1773314277956,10.362,86.839,86.793,10.35321663]
[1773314278952,10.362,86.839,86.795,10.367]
[1773314279153,10.362,86.839,86.796,10.35324883]
[1773314280256,2.47655402,86.83,86.785,10.35324883]
[1773314281254,2.47655402,86.83,86.788,10.41219564]
[1773314281558,43.54,86.846,86.791,10.41219564]
[1773314282056,43.54,86.846,86.797,10.41219564]
[1773314282256,2.47655402,86.84,86.797,10.41219564]
[1773314284855,10.362,86.838,86.797,10.41219564]
[1773314287858,2.47655402,86.84,86.8,10.39133876]
[1773314288061,2.47655402,86.83,86.79,10.39133876]
[1773314288860,2.47655402,86.83,86.795,10.40907789]
[1773314289060,10.362,86.839,86.795,10.40907789]
[1773314290758,2.47655402,86.85,86.799,10.4045957]
[1773314291065,2.47655402,86.87,86.811,10.4045957]
[1773314291362,2.47655402,86.86,86.811,10.4045957]
[1773314291858,2.47655402,86.87,86.821,10.4045957]
[1773314292166,2.47655402,86.9,86.841,10.4045957]
[1773314293161,10.355,86.896,86.846,10.39006529]
[1773314293568,2.47655402,86.9,86.856,10.39006529]
[1773314293866,43.54,86.909,86.856,10.39006529]
[1773314294971,10.354,86.907,86.864,10.38862173]
[1773314295767,43.54,86.909,86.867,10.38862173]
[1773314296564,43.54,86.909,86.87,10.40543675]
[1773314296968,195.8258434,86.927,86.87,12.88199077]
[1773314297565,195.8258434,86.927,86.889,10.356]
[1773314297770,195.8258434,86.927,86.89,10.40543675]
[1773314298763,2.47655402,86.94,86.89,10.40543675]
[1773314298958,2.47655402,86.94,86.899,10.40296059]
[1773314299164,43.52,86.949,86.899,10.40296059]
[1773314299767,43.52,86.958,86.91,10.40296059]
[1773314300868,43.52,86.958,86.9,2.47655402]
[1773314300869,2.47655402,86.92,86.823,10.3986523]
[1773314301068,234.02154981,86.958,86.891,10.3986523]
[1773314301264,2.47655402,86.95,86.891,10.3986523]
[1773314301974,234.00154981,86.958,86.901,10.3986523]
[1773314302469,2.47655402,86.95,86.901,10.3986523]
[1773314302969,2.47655402,86.92,86.872,10.31330796]
[1773314303160,190.50154981,86.958,86.872,10.31330796]
[1773314303161,2.47655402,86.93,86.872,10.31330796]
[1773314303362,2.47655402,86.94,86.881,10.31330796]
[1773314304865,2.47655402,86.94,86.891,10.34560247]
[1773314306269,2.47655402,86.92,86.891,10.34560247]
[1773314306868,2.47655402,86.92,86.878,10.34601413]
[1773314306869,10.352,86.919,86.878,10.34601413]
[1773314307174,2.47655402,86.91,86.878,10.34601413]
[1773314308073,10.354,86.909,86.878,10.34601413]
[1773314310274,2.47655402,86.91,86.878,10.34601413]
[1773314310575,10.353,86.919,86.878,10.34601413]
[1773314311777,2.47655402,86.91,86.878,10.34601413]
[1773314312070,10.353,86.919,86.878,10.34601413]
[1773314314875,10.353,86.912,86.878,10.34601413]
[1773314315977,10.354,86.905,86.866,10.34768513]
[1773314318579,2.47655402,86.9,86.866,10.34768513]
[1773314318779,10.354,86.905,86.866,10.34768513]
[1773314320179,2.47655402,86.91,86.867,10.359]
[1773314320379,2.47655402,86.93,86.871,10.36278228]
[1773314320579,2.47655402,86.94,86.871,10.36278228]
[1773314320780,10.351,86.932,86.894,10.36317353]
[1773314322984,10.351,86.928,86.894,10.36317353]
[1773314325989,10.351,86.935,86.894,10.36317353]
[1773314326185,2.47655402,86.95,86.894,10.36317353]
[1773314326692,2.47655402,86.95,86.909,10.37368146]
[1773314327286,10.351,86.934,86.909,10.37368146]
[1773314327593,2.47655402,86.93,86.883,10.37368146]
[1773314327988,10.351,86.929,86.887,10.37368146]
[1773314329589,2.47655402,86.92,86.887,10.37368146]
[1773314330383,12.82755402,86.93,86.887,10.37368146]
[1773314332995,10.352,86.921,86.887,10.37368146]
[1773314335295,2.47118951,86.93,86.887,10.37368146]
[1773314336196,10.352,86.92,86.887,10.37368146]
[1773314336494,2.47118951,86.93,86.887,10.37368146]
[1773314337990,10.352,86.927,86.887,10.37368146]
[1773314339796,10.352,86.927,86.839,20.724]
[1773314339797,2.47118951,86.94,86.89,10.48242055]
[1773314340488,10.35,86.939,86.899,10.48242055]
[1773314340890,2.47118951,86.94,86.899,10.48242055]
[1773314341896,10.351,86.933,86.899,10.48242055]
[1773314343998,2.47118951,86.93,86.899,10.48242055]
[1773314344199,10.351,86.929,86.899,10.48242055]
[1773314344700,2.47118951,86.92,86.874,10.47403383]
[1773314345302,2.47118951,86.89,86.852,21.54150221]
[1773314345499,2.47118951,86.86,86.813,10.47403383]
[1773314345799,43.48,86.875,86.821,10.47403383]
[1773314346002,2.47118951,86.89,86.831,10.47403383]
[1773314346496,2.47118951,86.9,86.856,10.47403383]
[1773314346909,2.47118951,86.9,86.857,10.36]
[1773314347096,2.47118951,86.9,86.858,10.48948036]
[1773314347601,10.354,86.907,86.858,10.48948036]
[1773314348904,10.354,86.907,86.861,10.359]
[1773314349104,2.47118951,86.9,86.862,10.52786977]
[1773314354102,10.355,86.898,86.852,10.36]
[1773314354408,2.47118951,86.89,86.852,10.36]
[1773314355698,10.356,86.888,86.85,10.52786868]
[1773314355902,2.47118951,86.88,86.84,10.53958936]
[1773314356109,10.356,86.888,86.84,10.53958936]
[1773314356406,2.47118951,86.89,86.844,10.53958936]
[1773314357910,2.47118951,86.89,86.85,10.4747098]
[1773314358506,10.355,86.896,86.853,10.47525415]
[1773314358708,2.47118951,86.9,86.853,10.47525415]
[1773314359310,43.5,86.909,86.853,10.47525415]
[1773314359510,2.47118951,86.91,86.853,10.47525415]
[1773314359902,10.355,86.897,86.856,10.36]
[1773314360209,10.355,86.897,86.857,10.47525415]
[1773314360410,2.47118951,86.91,86.857,10.47525415]
[1773314361910,10.354,86.905,86.858,10.36]
[1773314362205,10.354,86.905,86.859,10.47573432]
[1773314363206,10.354,86.905,86.86,10.359]
[1773314363512,10.354,86.905,86.84,2.47118951]
[1773314363513,10.355,86.899,86.861,10.48305875]
[1773314363813,2.47118951,86.93,86.888,10.48305875]
[1773314364711,10.352,86.922,86.888,10.48305875]
[1773314365116,10.353,86.916,86.888,10.48305875]
[1773314365613,2.47118951,86.93,86.888,10.48305875]
[1773314367008,10.352,86.923,86.888,10.48305875]
[1773314370717,10.353,86.915,86.888,10.48305875]
[1773314371911,2.47118951,86.92,86.888,10.48305875]
[1773314373210,10.352,86.921,86.888,10.48305875]
[1773314374819,10.353,86.917,86.888,10.48305875]
[1773314375013,2.47118951,86.93,86.888,10.48305875]
[1773314375417,43.48,86.939,86.888,10.48305875]
[1773314376016,10.35,86.937,86.892,10.48370506]
[1773314377015,10.35,86.937,86.894,10.48399485]
[1773314377614,10.351,86.931,86.894,10.48399485]
[1773314378318,2.47118951,86.93,86.894,10.48399485]
[1773314380114,2.47118951,86.92,86.882,10.47840187]
[1773314380623,2.47118951,86.92,86.883,10.357]
[1773314380917,2.47118951,86.92,86.884,10.47616931]
[1773314381117,43.48,86.923,86.884,10.47616931]
[1773314381923,43.48,86.923,86.885,10.356]
[1773314382121,43.48,86.923,86.886,10.47616931]
[1773314386028,2.47118951,86.92,86.886,10.47616931]
[1773314386226,2.47118951,86.92,86.877,10.357]
[1773314386821,2.47118951,86.92,86.878,10.46515669]
[1773314387027,10.353,86.914,86.878,10.46515669]
[1773314387329,2.47118951,86.92,86.878,10.46515669]
[1773314387526,2.47118951,86.92,86.881,10.46515669]
[1773314387728,43.48,86.923,86.881,10.46515669]
[1773314388928,43.48,86.923,86.894,10.355]
[1773314389128,43.48,86.923,86.891,10.48322502]
[1773314389428,43.48,86.935,86.891,10.48322502]
[1773314390324,2.47118951,86.92,86.875,10.48322502]
[1773314390530,2.47118951,86.93,86.875,10.48322502]
[1773314390725,2.47118951,86.94,86.881,10.48691219]
[1773314390925,43.48,86.943,86.881,10.48691219]
[1773314391129,10.35,86.942,86.9,10.48691219]
[1773314391629,2.47118951,86.94,86.9,10.48691219]
[1773314393027,2.47118951,86.94,86.902,10.48477659]
[1773314393630,2.47050265,86.94,86.902,10.48477659]
[1773314394430,10.35,86.938,86.902,10.48477659]
[1773314398738,2.47050265,86.93,86.886,10.4416368]
[1773314399144,2.47050265,86.94,86.886,10.4416368]
[1773314399834,10.35,86.936,86.897,10.355]
[1773314400036,10.35,86.936,86.898,10.4416368]
[1773314400433,10.35,86.944,86.901,10.4416368]
[1773314400638,10.35,86.944,86.839,28.41988528]
[1773314400639,2.47050265,86.92,86.883,10.44417275]
[1773314400840,2.47050265,86.93,86.883,10.44417275]
[1773314401741,2.47050265,86.93,86.887,10.44417275]
[1773314401937,10.35,86.937,86.887,10.44417275]
[1773314402941,10.35,86.937,86.89,10.44334979]
[1773314403337,12.82150265,86.93,86.89,10.44334979]
[1773314403735,2.47050265,86.93,86.891,10.44334979]
[1773314405438,2.47050265,86.92,86.891,10.44334979]
[1773314405642,2.47050265,86.92,86.875,10.44346432]
[1773314405839,10.352,86.919,86.875,10.44346432]
[1773314406047,10.73672036,86.959,86.875,10.44346432]
[1773314406340,2.47050265,86.93,86.875,10.44346432]
[1773314406536,12.82250265,86.92,86.878,10.43962055]
[1773314408743,2.47050265,86.92,86.881,10.48516795]
[1773314409037,2.47050265,86.94,86.881,10.48516795]
[1773314409234,43.48,86.939,86.881,10.48516795]
[1773314409440,43.48,86.939,86.891,10.48516795]
[1773314409741,2.47050265,86.93,86.891,10.48516795]
[1773314410843,10.351,86.929,86.891,10.48516795]
[1773314412645,2.47050265,86.93,86.891,10.48516795]
[1773314413948,12.82150265,86.93,86.891,10.48516795]
[1773314416443,12.82150265,86.93,86.893,10.50252495]